bitfinex/quotes_ETHUSD_20250406
["timestamp","ask_amount","ask_price","bid_price","bid_amount"]
[1743924782428,3.89518,1797.1,1797.0,5.43571599]
[1743924788814,3.89518,1797.1,1797.0,5.4913584]
[1743924789143,3.89475,1797.3,1797.0,6.0413584]
[1743924789314,7.78963,1797.3,1797.1,0.60413584]
[1743924789510,7.78963,1797.3,1797.2,0.19374916]
[1743924793542,3.895,1797.2,1797.0,5.792]
[1743924793735,3.895,1797.2,1797.1,0.19407719]
[1743924794137,3.89475,1797.3,1797.1,0.19407719]
[1743924794443,3.89452,1797.4,1797.1,0.84832202]
[1743924795051,7.7892,1797.4,1797.1,0.84832202]
[1743924795251,3.89475,1797.3,1797.1,0.79268491]
[1743924803432,3.89475,1797.3,1797.1,0.19407719]
[1743924803634,6.46368309,1797.3,1797.1,0.19407719]
[1743924803846,4.87334,1797.2,1797.1,0.19407719]
[1743924804027,4.87334,1797.2,1797.1,5.43507719]
[1743924805328,3.89494,1797.2,1797.1,5.43507719]
[1743924812645,3.89494,1797.2,1797.1,0.19407719]
[1743924812845,3.89494,1797.2,1796.9,25.32915157]
[1743924812846,3.89538,1797.0,1796.9,25.32915157]
[1743924813051,7.50141309,1797.0,1796.9,30.7647324]
[1743924815073,7.50141309,1797.0,1796.9,5.7247324]
[1743924815875,4.93248,1797.0,1796.9,5.7247324]
[1743924818345,3.89538,1797.0,1796.9,5.7247324]
[1743924819781,4.93248,1797.0,1796.9,5.7247324]
[1743924820283,3.89538,1797.0,1796.9,5.7247324]
[1743924829997,3.89538,1797.0,1796.9,6.29720564]
[1743924830703,3.89519,1797.1,1796.9,6.29720564]
[1743924830875,3.89519,1797.1,1797.0,1.0564]
[1743924831062,3.89519,1797.1,1797.0,1.25111826]
[1743924838499,3.89519,1797.1,1797.0,0.19471826]
[1743924844903,4.83629,1797.1,1797.0,0.19471826]
[1743924845202,5.87227553,1797.1,1797.0,5.43471826]
[1743924847201,4.83629,1797.1,1797.0,5.43471826]
[1743924847603,3.89519,1797.1,1797.0,5.43471826]
[1743924849913,7.7901,1797.2,1797.0,5.43471826]
[1743924850910,3.89516,1797.1,1797.0,5.43471826]
[1743924866229,3.89516,1797.1,1797.0,0.19471826]
[1743924866423,3.89516,1797.1,1797.0,5.43271826]
[1743924869090,3.89516,1797.1,1797.0,6.97710524]
[1743924869691,3.89516,1797.1,1797.0,5.43271826]
[1743924870296,6.46466528,1797.2,1797.0,5.43271826]
[1743924870496,10.35976528,1797.2,1797.0,5.43271826]
[1743924871710,3.89516,1797.1,1797.0,5.43271826]
[1743924877240,3.89482,1797.3,1797.0,5.43271826]
[1743924877440,3.89482,1797.3,1797.1,1.51547183]
[1743924877814,3.89482,1797.3,1797.2,0.19406394]
[1743924885645,3.89482,1797.3,1797.2,5.43106394]
[1743924897169,4.82722,1797.3,1797.2,5.43006394]
[1743924897370,5.95636553,1797.3,1797.2,5.43006394]
[1743924899870,5.95636553,1797.3,1797.2,0.19406394]
[1743924900072,5.95636553,1797.3,1797.2,5.43006394]
[1743924900373,5.95636553,1797.3,1797.2,5.43018128]
[1743924902174,8.95636553,1797.3,1797.2,5.43018128]
[1743924902967,11.52607081,1797.3,1797.2,5.43018128]
[1743924904556,8.52607081,1797.3,1797.2,5.43018128]
[1743924904861,7.59367081,1797.3,1797.2,5.43018128]
[1743924907775,6.46452528,1797.3,1797.2,5.43018128]
[1743924909540,3.89453,1797.4,1797.2,5.43018128]
[1743924909741,3.89453,1797.4,1797.2,6.28168128]
[1743924909742,7.78921,1797.4,1797.2,6.28168128]
[1743924911247,3.89473,1797.3,1797.2,6.28168128]
[1743924914579,3.89473,1797.3,1797.2,0.19418128]
[1743924914881,3.89473,1797.3,1797.2,5.42918128]
[1743924924185,3.89473,1797.3,1797.2,6.06281327]
[1743924931092,3.89389,1797.7,1797.3,0.856]
[1743924931292,3.89365,1797.8,1797.5,0.856]
[1743924931491,7.78745,1797.8,1797.6,5.233]
[1743924931791,7.78745,1797.8,1797.6,5.93485321]
[1743924932803,10.32116528,1797.7,1797.6,0.70185321]
[1743924933016,12.89087056,1797.7,1797.6,0.70185321]
[1743924933231,4.75233,1797.3,1797.0,25.038]
[1743924933371,3.89494,1797.2,1797.1,5.233]
[1743924934271,3.89473,1797.3,1797.1,6.089]
[1743924934485,3.89473,1797.3,1797.1,6.14464254]
[1743924934809,3.89435,1797.5,1797.1,9.98414]
[1743924935113,3.89435,1797.5,1797.1,6.089]
[1743924935287,3.89461,1797.4,1797.1,6.089]
[1743924936972,3.89409,1797.6,1797.2,0.856]
[1743924937171,3.89409,1797.6,1797.2,4.7509]
[1743924937379,3.89409,1797.6,1797.3,1.11812802]
[1743924937625,3.89409,1797.6,1797.4,0.856]
[1743924937780,3.89409,1797.6,1797.5,5.233]
[1743924938119,3.89409,1797.6,1797.5,5.87569606]
[1743924938473,3.89387,1797.7,1797.5,5.87569606]
[1743924939202,3.89387,1797.7,1797.5,6.54886567]
[1743924942615,3.89408,1797.6,1797.5,0.64269606]
[1743924942795,3.89408,1797.6,1797.5,5.87469606]
[1743924945594,8.99819759,1797.6,1797.5,0.64269606]
[1743924945801,11.99819759,1797.6,1797.5,0.64269606]
[1743924946009,13.58740435,1797.6,1797.5,0.64269606]
[1743924946819,3.89408,1797.6,1797.5,0.64269606]
[1743924948723,3.89392,1797.7,1797.5,0.64269606]
[1743924949523,7.78794,1797.7,1797.5,0.64269606]
[1743924950021,3.89408,1797.6,1797.5,0.64269606]
[1743924957234,3.89389,1797.7,1797.5,1.43279606]
[1743924959299,3.89389,1797.7,1797.5,2.09927567]
[1743924962135,4.65158,1797.6,1797.5,0.64269606]
[1743924962335,3.89473,1797.3,1797.2,30.266]
[1743924962499,11.93294759,1797.3,1797.2,25.62455551]
[1743924962942,11.93294759,1797.3,1797.2,0.58955551]
[1743924963100,3.89516,1797.1,1797.0,5.231]
[1743924963432,8.95457759,1797.1,1797.0,5.82143296]
[1743924964336,11.95457759,1797.1,1797.0,0.59043296]
[1743924964539,3.89559,1796.9,1796.8,5.231]
[1743924964706,8.17630759,1796.9,1796.8,5.76331903]
[1743924966118,3.89559,1796.9,1796.8,5.76331903]
[1743924967337,3.89559,1796.9,1796.8,6.33965093]
[1743924968610,3.89545,1797.0,1796.8,6.33965093]
[1743924969115,3.89517,1797.1,1796.8,6.33965093]
[1743924969339,3.89495,1797.2,1796.9,0.7803]
[1743924969528,3.89524,1797.1,1797.0,0.53275167]
[1743924970249,3.89495,1797.2,1797.0,0.53275167]
[1743924974856,3.89516,1797.1,1797.0,0.53275167]
[1743924976150,3.89516,1797.1,1797.0,5.76475167]
[1743924979356,3.89495,1797.2,1797.0,5.76475167]
[1743924979528,3.89495,1797.2,1797.0,6.41925684]
[1743924980325,3.89453,1797.4,1797.1,0.7803]
[1743924980525,3.89453,1797.4,1797.2,0.5326192]
[1743924981125,3.8943,1797.5,1797.2,0.58825437]
[1743924983060,3.8943,1797.5,1797.2,25.5716192]
[1743924983260,3.8943,1797.5,1797.3,1.99849004]
[1743924983575,3.8943,1797.5,1797.4,5.76421261]
[1743924986364,3.7943,1797.5,1797.4,5.76421261]
[1743924986559,7.78782,1797.7,1797.4,6.54011261]
[1743924987560,3.89408,1797.6,1797.4,6.54011261]
[1743924987729,3.89408,1797.6,1797.5,0.5763319]
[1743924987931,3.89408,1797.6,1797.5,1.10758271]
[1743924988763,3.89386,1797.7,1797.5,1.10758271]
[1743924990231,7.78788,1797.7,1797.5,1.10758271]
[1743924990634,3.89408,1797.6,1797.5,1.10758271]
[1743924993163,3.89386,1797.7,1797.5,1.10758271]
[1743924993378,7.78747,1797.8,1797.5,1.10758271]
[1743924993575,3.89366,1797.8,1797.5,1.10758271]
[1743924993779,3.89388,1797.7,1797.5,1.10758271]
[1743924994267,3.89408,1797.6,1797.5,1.10758271]
[1743924997667,4.67548,1797.6,1797.5,0.53125081]
[1743924997877,4.67548,1797.6,1797.5,5.76125081]
[1743924998039,4.67548,1797.6,1797.5,5.23]
[1743924998237,4.67548,1797.6,1797.5,5.76099264]
[1743925000913,3.89388,1797.7,1797.5,5.76099264]
[1743925001180,7.78791,1797.7,1797.5,5.76099264]
[1743925001883,3.89408,1797.6,1797.5,5.76099264]
[1743925008500,3.89388,1797.7,1797.5,7.1129919]
[1743925008823,3.89369,1797.8,1797.5,7.1129919]
[1743925009573,3.8933,1798.0,1797.5,10.2313219]
[1743925009820,3.893,1798.1,1797.8,0.7759]
[1743925010122,3.893,1798.1,1797.9,5.76000234]
[1743925012477,3.89245,1798.4,1798.0,0.7759]
[1743925012818,4.68496,1798.5,1798.1,0.52927109]
[1743925013027,4.68496,1798.5,1798.1,4.42214109]
[1743925013202,8.57725,1798.5,1798.1,29.45414109]
[1743925013885,3.89239,1798.4,1798.1,25.56127109]
[1743925014083,3.89239,1798.4,1798.2,1.99963762]
[1743925014282,3.89239,1798.4,1798.3,5.229]
[1743925014526,3.89239,1798.4,1798.3,5.7579256]
[1743925019131,8.58808774,1798.8,1798.3,5.7579256]
[1743925019132,3.89193,1798.6,1798.3,6.5378256]
[1743925019545,0.05,1798.9,1798.5,3.89204]
[1743925019746,0.05,1798.9,1798.7,3.89168]
[1743925019912,0.05,1798.9,1798.8,5.228]
[1743925020118,0.05,1798.9,1798.8,5.7533496]
[1743925020534,0.05,1798.9,1798.8,10.48031397]
[1743925020695,0.05,1798.9,1798.8,7.42931946]
[1743925020900,0.05,1798.9,1798.8,7.37373509]
[1743925021197,0.05,1798.9,1798.8,9.6448296]
[1743925021397,0.05,1798.9,1798.8,5.7533496]
[1743925021916,3.94126,1798.9,1798.8,5.7533496]
[1743925022130,0.05,1798.9,1798.8,5.7533496]
[1743925022446,0.05,1798.9,1798.8,6.5332496]
[1743925022598,0.05,1798.9,1798.8,7.57573556]
[1743925022797,0.05,1798.9,1798.8,11.46721556]
[1743925023200,0.05,1798.9,1798.8,7.57573556]
[1743925023927,0.05,1798.9,1798.8,11.46721556]
[1743925025019,0.05,1798.9,1798.8,7.57573556]
[1743925026023,0.05,1798.9,1798.8,11.5227995]
[1743925026234,0.05,1798.9,1798.8,12.01721556]
[1743925026934,0.05,1798.9,1798.8,25.45793315]
[1743925027411,0.05,1798.9,1798.8,25.88050711]
[1743925027609,0.05,1798.9,1798.8,18.17521556]
[1743925028004,0.05,1798.9,1798.8,14.28373556]
[1743925028205,0.05,1798.9,1798.8,13.73373556]
[1743925028428,0.05,1798.9,1798.8,14.28373556]
[1743925029140,0.05,1798.9,1798.8,18.17521556]
[1743925029333,0.05,1798.9,1798.8,14.28373556]
[1743925029836,0.05,1798.9,1798.8,18.17521556]
[1743925030702,0.05,1798.9,1798.8,14.28373556]
[1743925031111,0.05,1798.9,1798.8,39.29973556]
[1743925031731,0.05,1798.9,1798.8,33.29383556]
[1743925031903,0.05,1798.9,1798.8,38.51983556]
[1743925032108,0.05,1798.9,1798.8,33.29383556]
[1743925032439,0.05,1798.9,1798.8,38.51883556]
[1743925032639,0.05,1798.9,1798.8,32.35883556]
[1743925034243,3.94126,1798.9,1798.8,1.56783556]
[1743925034446,4.72776,1798.9,1798.8,5.7503496]
[1743925041848,9.04927759,1798.9,1798.8,0.5253496]
[1743925042150,4.71878,1798.8,1798.7,5.225]
[1743925050993,3.89148,1798.8,1798.7,5.225]
[1743925051279,3.89148,1798.8,1798.7,5.7475]
[1743925054247,3.89148,1798.8,1798.7,5.225]
[1743925057087,4.71898,1798.8,1798.7,5.225]
[1743925057251,3.89191,1798.6,1798.5,25.015]
[1743925057594,3.89191,1798.6,1798.5,30.241]
[1743925061190,3.89191,1798.6,1798.5,5.226]
[1743925067200,3.89234,1798.4,1798.3,25.018]
[1743925067398,3.89234,1798.4,1798.3,30.244]
[1743925071226,3.89227,1798.5,1798.3,30.244]
[1743925071426,3.89192,1798.6,1798.3,31.0757]
[1743925072289,3.89192,1798.6,1798.4,0.51548594]
[1743925072510,3.89192,1798.6,1798.3,31.0757]
[1743925072818,3.89192,1798.6,1798.4,0.51530932]
[1743925073022,7.78401,1798.6,1798.4,0.51530932]
[1743925073319,7.78401,1798.6,1798.3,31.0757]
[1743925073526,7.78401,1798.6,1798.4,0.51530932]
[1743925073739,7.78401,1798.6,1798.3,31.0757]
[1743925074027,3.89215,1798.5,1798.3,31.0757]
[1743925074937,3.89192,1798.6,1798.3,31.0757]
[1743925075441,7.784,1798.6,1798.3,31.0757]
[1743925075641,3.89192,1798.6,1798.3,31.0757]
[1743925076548,7.78402,1798.6,1798.3,31.0757]
[1743925077445,3.89192,1798.6,1798.3,31.0757]
[1743925077646,3.89213,1798.5,1798.3,31.0757]
[1743925081545,3.8917,1798.7,1798.3,34.96823]
[1743925081752,3.8917,1798.7,1798.3,38.86076]
[1743925081960,3.94136,1798.9,1798.5,4.72369]
[1743925082314,0.05,1798.9,1798.7,0.8317]
[1743925082513,0.05,1798.9,1798.8,5.226]
[1743925082718,0.05,1798.9,1798.8,10.32883647]
[1743925082914,0.05,1798.9,1798.8,11.16053647]
[1743925083151,0.05,1798.9,1798.8,11.10495]
[1743925085761,0.05,1798.9,1798.8,7.21347]
[1743925086252,0.05,1798.9,1798.8,11.10495]
[1743925086835,0.05,1798.9,1798.8,7.21347]
[1743925087256,0.05,1798.9,1798.8,7.26905245]
[1743925087470,0.05,1798.9,1798.8,11.16053245]
[1743925087965,0.05,1798.9,1798.8,11.61953288]
[1743925088574,0.05,1798.9,1798.8,7.72805288]
[1743925089323,0.05,1798.9,1798.8,11.67511534]
[1743925089542,0.05,1798.9,1798.8,11.61953288]
[1743925090667,0.05,1798.9,1798.8,7.72805288]
[1743925091569,0.05,1798.9,1798.8,11.61953288]
[1743925094279,0.05,1798.9,1798.8,17.77953288]
[1743925096058,0.05,1798.9,1798.8,42.79253288]
[1743925100088,0.05,1798.9,1798.8,50.07325047]
[1743925105493,0.7969,1799.7,1799.5,3.88981]
[1743925105796,0.7969,1799.7,1799.6,5.73318118]
[1743925105990,8.62529,1799.9,1799.6,5.73318118]
[1743925106202,4.736,1799.9,1799.6,5.73318118]
[1743925106382,8.62526,1799.9,1799.6,5.73318118]
[1743925106847,4.736,1799.9,1799.6,5.73318118]
[1743925107053,0.8469,1799.9,1799.7,0.55]
[1743925107471,8.16940759,1800.1,1799.7,0.55]
[1743925107472,0.7969,1800.3,1799.9,0.55]
[1743925107765,3.88877,1800.1,1800.0,5.73187982]
[1743925108083,8.16948759,1800.1,1800.0,5.73187982]
[1743925109165,12.37528135,1800.1,1800.0,0.50887982]
[1743925109698,3.8891,1799.9,1799.8,5.223]
[1743925109867,8.16981759,1799.9,1799.8,5.223]
[1743925110695,8.95401759,1799.9,1799.8,5.223]
[1743925117469,8.95401759,1799.9,1799.8,5.73226621]
[1743925119997,10.23831535,1799.9,1799.8,5.73226621]
[1743925121704,8.95401759,1799.9,1799.8,5.73226621]
[1743925137564,3.8891,1799.9,1799.8,5.73226621]
[1743925144270,8.16981759,1799.9,1799.8,5.73226621]
[1743925144861,8.16981759,1799.9,1799.8,5.73026621]
[1743925145772,3.8891,1799.9,1799.8,5.73026621]
[1743925146567,8.16913759,1800.3,1799.8,10.96676283]
[1743925146773,3.88842,1800.3,1799.9,4.66338]
[1743925146967,3.88842,1800.3,1799.9,0.7743]
[1743925147270,3.88853,1800.2,1800.0,0.50818317]
[1743925147454,3.88842,1800.3,1800.0,0.50818317]
[1743925147861,3.88842,1800.3,1800.0,1.02533349]
[1743925148686,3.88804,1800.4,1800.1,0.8153]
[1743925148886,3.88804,1800.4,1800.2,5.221]
[1743925149054,3.88804,1800.4,1800.2,5.72846866]
[1743925149688,8.16852759,1800.5,1800.2,5.72846866]
[1743925149992,3.88781,1800.5,1800.3,0.57284687]
[1743925150180,3.88781,1800.5,1800.2,5.72846866]
[1743925150386,3.88815,1800.4,1800.2,5.72846866]
[1743925151603,3.88804,1800.4,1800.2,5.72846866]
[1743925155919,7.77626,1800.4,1800.2,5.72846866]
[1743925156222,3.88804,1800.4,1800.2,5.72846866]
[1743925156425,3.88804,1800.4,1800.3,0.57284687]
[1743925157028,3.88804,1800.4,1800.3,1.08008213]
[1743925158901,3.88783,1800.5,1800.3,1.08008213]
[1743925159492,3.88783,1800.5,1800.3,1.88418213]
[1743925161028,7.77579,1800.5,1800.3,1.88418213]
[1743925161340,3.88783,1800.5,1800.3,1.88418213]
[1743925161553,3.88802,1800.4,1800.3,1.88418213]
[1743925163020,3.88802,1800.4,1800.3,1.08008213]
[1743925164437,3.88802,1800.4,1800.3,0.50723526]
[1743925164637,4.67772,1800.4,1800.3,0.50723526]
[1743925165738,3.88802,1800.4,1800.3,0.50723526]
[1743925166536,3.88783,1800.5,1800.3,1.28993526]
[1743925167552,7.77579,1800.5,1800.3,1.28993526]
[1743925168002,7.77579,1800.5,1800.3,1.94102879]
[1743925168405,3.88783,1800.5,1800.3,1.94102879]
[1743925170239,3.88743,1800.7,1800.3,5.82915879]
[1743925170435,7.775,1800.7,1800.3,5.82915879]
[1743925170639,3.88721,1800.8,1800.5,4.64139]
[1743925170949,3.88721,1800.8,1800.6,5.73866927]
[1743925171152,3.88721,1800.8,1800.6,6.24430805]
[1743925171455,3.93707,1800.9,1800.7,0.7536]
[1743925171803,3.93707,1800.9,1800.8,0.50529814]
[1743925173229,3.88733,1800.8,1800.6,6.436739]
[1743925173402,3.88733,1800.8,1800.7,0.6436739]
[1743925177189,3.88733,1800.8,1800.7,1.14914235]
[1743925177787,8.16804759,1800.8,1800.7,0.50546845]
[1743925177991,3.88737,1800.7,1800.6,5.219]
[1743925178162,3.88737,1800.7,1800.6,5.7242061]
[1743925179294,3.88737,1800.7,1800.6,0.5052061]
[1743925179295,4.70707,1800.7,1800.6,0.5052061]
[1743925179593,8.11464382,1800.7,1800.6,5.218]
[1743925179784,8.11464382,1800.7,1800.1,24.996]
[1743925179785,3.88845,1800.2,1800.1,24.996]
[1743925179982,3.88845,1800.2,1800.1,30.214]
[1743925187879,8.16916759,1800.2,1800.1,24.996]
[1743925188176,9.37490935,1800.2,1800.1,30.214]
[1743925188379,8.97886759,1800.2,1800.1,24.996]
[1743925188688,8.97886759,1800.2,1800.1,30.214]
[1743925189292,3.88845,1800.2,1800.1,30.214]
[1743925191095,3.88845,1800.2,1800.1,5.218]
[1743925192208,3.88845,1800.2,1800.1,5.7250036]
[1743925192823,3.88845,1800.2,1800.1,6.29750396]
[1743925193701,3.88845,1800.2,1800.1,5.7250036]
[1743925196195,4.69815,1800.2,1800.1,5.7250036]
[1743925200134,3.88845,1800.2,1800.1,5.7250036]
[1743925206506,3.88825,1800.3,1800.1,6.5473036]
[1743925208626,8.16873759,1800.4,1800.1,6.5473036]
[1743925208627,3.88802,1800.4,1800.1,6.60285322]
[1743925208929,3.88802,1800.4,1800.2,0.66028532]
[1743925209234,7.7762,1800.4,1800.3,0.50734355]
[1743925210108,7.7762,1800.4,1800.1,6.0403]
[1743925210313,7.7762,1800.4,1800.3,0.50734355]
[1743925210627,3.88824,1800.3,1800.1,6.0403]
[1743925210938,3.88824,1800.3,1800.1,0.992907]
[1743925211139,3.88824,1800.3,1800.2,5.218]
[1743925219363,3.88824,1800.3,1800.2,6.0227]
[1743925222126,3.8881,1800.4,1800.2,6.0227]
[1743925222335,3.8881,1800.4,1800.2,6.5298739]
[1743925222516,3.8881,1800.4,1800.3,0.65298739]
[1743925222947,3.8881,1800.4,1800.3,1.15999086]
[1743925223147,3.88783,1800.5,1800.3,1.15999086]
[1743925223560,7.7758,1800.5,1800.3,1.15999086]
[1743925224464,3.88802,1800.4,1800.3,1.15999086]
[1743925225159,7.77582,1800.5,1800.3,1.15999086]
[1743925225381,3.88802,1800.4,1800.3,1.15999086]
[1743925226511,3.88783,1800.5,1800.3,1.15999086]
[1743925226840,7.77579,1800.5,1800.3,1.15999086]
[1743925227177,3.88783,1800.5,1800.3,1.15999086]
[1743925227977,7.77582,1800.5,1800.3,1.15999086]
[1743925228381,3.88802,1800.4,1800.3,1.15999086]
[1743925231439,6.44787702,1800.5,1800.3,1.15999086]
[1743925231678,6.44787702,1800.5,1800.3,1.44072441]
[1743925232053,10.33585702,1800.5,1800.3,1.44072441]
[1743925232905,6.44787702,1800.5,1800.3,1.44072441]
[1743925233306,3.88782,1800.5,1800.3,1.44072441]
[1743925235908,7.77579,1800.5,1800.3,1.44072441]
[1743925236208,3.88802,1800.4,1800.3,0.78773702]
[1743925237512,6.44787702,1800.5,1800.3,0.78773702]
[1743925237718,3.88782,1800.5,1800.3,0.78773702]
[1743925238416,7.77577,1800.5,1800.3,0.78773702]
[1743925240805,3.88802,1800.4,1800.3,0.78773702]
[1743925243031,3.88782,1800.5,1800.3,1.46878072]
[1743925244236,7.77577,1800.5,1800.3,1.46878072]
[1743925245915,7.77577,1800.5,1800.3,0.78773702]
[1743925246118,3.88802,1800.4,1800.3,0.78773702]
[1743925248055,3.88782,1800.5,1800.3,0.78773702]
[1743925248217,3.88751,1800.7,1800.4,0.7641]
[1743925248549,3.88751,1800.7,1800.5,0.78720291]
[1743925248756,3.88751,1800.7,1800.6,5.216]
[1743925249063,3.88716,1800.8,1800.6,6.76691535]
[1743925250157,3.88737,1800.7,1800.6,6.76691535]
[1743925251259,3.88716,1800.8,1800.6,6.76691535]
[1743925251859,3.93696,1800.9,1800.6,7.44360689]
[1743925252040,3.93696,1800.9,1800.6,7.49914199]
[1743925253363,0.05,1800.9,1800.6,11.38665199]
[1743925253541,0.05,1800.9,1800.6,11.33111689]
[1743925253917,0.05,1800.9,1800.6,7.44360689]
[1743925254137,3.93694,1800.9,1800.7,0.74436069]
[1743925254462,3.93694,1800.9,1800.7,1.53072696]
[1743925254960,7.82406,1800.9,1800.7,1.53072696]
[1743925255165,3.88716,1800.8,1800.7,0.78636627]
[1743925255365,3.88716,1800.8,1800.6,6.65679154]
[1743925255571,3.88716,1800.8,1800.7,0.78628618]
[1743925255740,3.88716,1800.8,1800.6,6.65679154]
[1743925256158,3.88716,1800.8,1800.7,0.78628618]
[1743925256597,3.88716,1800.8,1800.6,5.89269154]
[1743925256745,3.88716,1800.8,1800.7,0.78628618]
[1743925257082,0.7961,1800.7,1800.4,24.993]
[1743925257372,3.88759,1800.6,1800.5,5.215]
[1743925257526,3.88759,1800.6,1800.4,24.993]
[1743925257735,3.88759,1800.6,1800.5,5.215]
[1743925259128,3.8878,1800.5,1800.4,24.993]
[1743925259334,3.8878,1800.5,1800.4,30.208]
[1743925261637,3.8878,1800.5,1800.4,5.215]
[1743925265387,4.7195,1800.5,1800.4,5.215]
[1743925265884,3.88823,1800.4,1800.0,26.10993503]
[1743925266189,3.88828,1800.3,1800.1,7.8259935]
[1743925266718,3.88828,1800.3,1800.2,5.216]
[1743925267405,3.88828,1800.3,1800.2,6.00360298]
[1743925268506,4.67028,1800.3,1800.2,6.00360298]
[1743925270375,4.67028,1800.3,1800.2,0.78760298]
[1743925270588,4.67067,1800.1,1800.0,24.992]
[1743925270816,4.67067,1800.1,1800.0,30.208]
[1743925271623,4.29577,1800.1,1800.0,30.208]
[1743925278829,8.56095804,1800.1,1800.0,30.208]
[1743925280966,8.56095804,1800.1,1800.0,5.216]
[1743925282389,8.56095804,1800.1,1800.0,5.82435345]
[1743925283689,6.85742673,1800.1,1800.0,5.82435345]
[1743925284481,6.45032673,1800.1,1800.0,5.82435345]
[1743925284687,4.70505,1800.2,1800.0,5.82435345]
[1743925284688,3.88845,1800.2,1800.0,6.4067888]
[1743925285986,3.88867,1800.1,1800.0,6.4067888]
[1743925288288,3.88867,1800.1,1800.0,5.82435345]
[1743925288707,4.67307,1800.1,1800.0,5.82435345]
[1743925289290,6.88867,1800.1,1800.0,0.60835345]
[1743925289489,6.88867,1800.1,1799.8,25.28875147]
[1743925289490,7.67307,1800.1,1799.8,30.216]
[1743925289832,8.1572613,1799.9,1799.8,30.216]
[1743925290738,3.8891,1799.9,1799.8,30.216]
[1743925292817,8.1572613,1799.9,1799.8,30.216]
[1743925293139,8.9416613,1799.9,1799.8,30.216]
[1743925295231,8.9416613,1799.9,1799.8,5.216]
[1743925295550,3.8895,1799.8,1799.6,0.8661609]
[1743925295837,7.779,1799.8,1799.7,5.216]
[1743925297458,7.779,1799.8,1799.7,5.8256283]
[1743925301062,3.8895,1799.8,1799.7,5.8256283]
[1743925301357,3.88911,1799.9,1799.7,7.30480722]
[1743925309874,3.88932,1799.8,1799.7,7.30480722]
[1743925310749,3.88932,1799.8,1799.7,6.49480722]
[1743925310955,3.88932,1799.8,1799.7,5.8256283]
[1743925314504,3.88932,1799.8,1799.7,0.6096283]
[1743925314683,3.88932,1799.8,1799.7,5.8256283]
[1743925314881,3.88975,1799.6,1799.5,0.28878237]
[1743925315084,3.88975,1799.6,1799.5,5.50478237]
[1743925315414,3.88996,1799.5,1799.4,25.001]
[1743925315569,3.88996,1799.5,1799.4,30.217]
[1743925320032,8.1581213,1799.5,1799.4,25.001]
[1743925320319,8.9760213,1799.5,1799.4,30.217]
[1743925320637,3.89083,1799.1,1799.0,1.0]
[1743925320990,3.89083,1799.1,1799.0,6.216]
[1743925321223,8.99548013,1799.1,1799.0,1.0]
[1743925322029,9.41654138,1799.1,1799.0,1.0]
[1743925327325,9.41654138,1799.1,1799.0,1.56329667]
[1743925327827,4.70873,1799.1,1799.0,1.56329667]
[1743925328050,3.89083,1799.1,1799.0,1.56329667]
[1743925328253,3.89061,1799.2,1799.0,2.37789667]
[1743925328524,3.89041,1799.3,1799.0,2.37789667]
[1743925328735,3.89041,1799.3,1799.1,5.217]
[1743925328938,3.8904,1799.3,1799.2,0.5217]
[1743925329157,7.78055,1799.4,1799.2,1.0840585]
[1743925329364,7.78055,1799.4,1799.2,0.5217]
[1743925329665,7.78055,1799.4,1799.3,0.56184919]
[1743925329830,3.8902,1799.4,1799.3,0.56184919]
[1743925331232,3.89059,1799.3,1799.1,5.217]
[1743925331429,3.89059,1799.3,1799.2,0.56215664]
[1743925331632,3.89059,1799.3,1799.1,5.92016]
[1743925331834,3.89059,1799.3,1799.2,0.56215664]
[1743925332055,3.89059,1799.3,1799.1,5.92016]
[1743925332260,3.89059,1799.3,1799.2,0.56215664]
[1743925332791,3.89059,1799.3,1799.1,5.92016]
[1743925333089,3.89059,1799.3,1799.2,0.56215664]
[1743925333391,3.89059,1799.3,1799.1,5.92016]
[1743925333691,3.89059,1799.3,1799.2,0.56215664]
[1743925334097,7.78118,1799.3,1799.1,5.92016]
[1743925334251,7.78118,1799.3,1799.2,0.56215664]
[1743925334450,7.78118,1799.3,1799.1,5.92016]
[1743925334652,7.78118,1799.3,1799.2,0.56215664]
[1743925334877,7.78118,1799.3,1799.1,5.92016]
[1743925335066,3.89059,1799.3,1799.1,5.92016]
[1743925335368,7.78115,1799.3,1799.2,0.56215664]
[1743925335687,7.78115,1799.3,1799.1,5.92016]
[1743925335887,7.78115,1799.3,1799.2,0.56215664]
[1743925336297,7.78115,1799.3,1799.1,5.92016]
[1743925336464,3.89056,1799.3,1799.2,0.56215664]
[1743925336795,3.89019,1799.4,1799.2,0.56215664]
[1743925336953,3.89019,1799.4,1799.2,0.64823166]
[1743925337290,7.78054,1799.4,1799.3,0.56197029]
[1743925338290,3.8905,1799.3,1799.1,5.217]
[1743925338854,7.78109,1799.3,1799.1,5.217]
[1743925339606,3.89061,1799.2,1799.1,5.217]
[1743925340296,3.8905,1799.3,1799.1,5.92016]
[1743925340686,3.89018,1799.4,1799.1,5.92016]
[1743925341412,7.78053,1799.4,1799.1,5.92016]
[1743925341804,3.8904,1799.3,1799.1,5.92016]
[1743925342305,3.8904,1799.3,1799.2,0.56233418]
[1743925342808,7.78099,1799.3,1799.2,0.56237454]
[1743925343008,7.78099,1799.3,1799.1,5.217]
[1743925343174,7.78099,1799.3,1799.2,0.56237454]
[1743925343376,7.78099,1799.3,1799.1,5.217]
[1743925343576,7.78099,1799.3,1799.2,0.56237454]
[1743925343778,7.78099,1799.3,1799.1,5.217]
[1743925344002,7.78099,1799.3,1799.2,0.56237454]
[1743925344203,7.78099,1799.3,1799.1,5.217]
[1743925344390,7.78099,1799.3,1799.2,0.56237454]
[1743925344598,7.78099,1799.3,1799.1,5.217]
[1743925344799,3.8904,1799.3,1799.2,0.56237454]
[1743925345100,3.8904,1799.3,1799.1,5.92016]
[1743925345303,3.89027,1799.4,1799.2,0.56237454]
[1743925345477,3.88999,1799.5,1799.3,0.826]